{"text_format":"1","workbook":"xlsx","n_sheets":3,"sheets":["גיליון1","גיליון2","גיליון3"],"not_rendered":{"charts":0,"images":0,"macros":1,"external_links":0,"defined_names":0,"comments":0,"pivot_tables":0},"unopened":[],"bounds":{"document_bytes":16777216,"sheet_cells":100000,"rows_first":2000,"rows_last":500,"rows_between":2000,"halvings":0,"cell_chars":16384,"cell_head_chars":4096},"cells_cut":0,"cells_raw":0,"read":"whole","date_system":"1900"}

{"sheet":"גיליון1","index":0,"n_rows":20,"n_cols":10,"rows_kept":20,"cut":false,"hidden":false,"merged":[]}
[{"$f":"ROW()*COLUMN()","v":1},{"$f":"ROW()*COLUMN()","v":2},3,4,5,6,7,8,9,10]
[2,4,6,8,10,12,14,16,18,20]
[3,6,9,12,15,18,21,24,27,30]
[4,8,12,16,20,24,28,32,36,40]
[5,10,15,20,25,30,35,40,45,50]
[6,12,18,24,30,36,42,48,54,60]
[7,14,21,28,35,42,49,56,63,70]
[8,16,24,32,40,48,56,64,72,80]
[9,18,27,36,45,54,63,72,81,90]
[10,20,30,40,50,60,70,80,90,100]
[]
[]
[]
[]
[]
[]
[]
[]
["נוסחה עם שימוש במשתנים:"]
[{"$f":"SubInFunction(\"להחזיר את המקסימום של הטווח, בתנאי שהמינימום גדול מאחד\",SetTempVar(MIN(A1:E11)),IF(GetTempVar()>1,MAX(A1:E11),GetTempVar()))","v":1},{"$f":"SubInFunction(\"להחזיר את המקסימום של הטווח, בתנאי שהמינימום גדול מאחד\",SetTempVar(MIN(B1:F11)),IF(GetTempVar()>1,MAX(B1:F11),GetTempVar()))","v":60},{"$f":"SubInFunction(\"להחזיר את המקסימום של הטווח, בתנאי שהמינימום גדול מאחד\",SetTempVar(MIN(C1:G11)),IF(GetTempVar()>1,MAX(C1:G11),GetTempVar()))","v":70},{"$f":"SubInFunction(\"להחזיר את המקסימום של הטווח, בתנאי שהמינימום גדול מאחד\",SetTempVar(MIN(D1:H11)),IF(GetTempVar()>1,MAX(D1:H11),GetTempVar()))","v":80},{"$f":"SubInFunction(\"להחזיר את המקסימום של הטווח, בתנאי שהמינימום גדול מאחד\",SetTempVar(MIN(E1:I11)),IF(GetTempVar()>1,MAX(E1:I11),GetTempVar()))","v":90},{"$f":"SubInFunction(\"להחזיר את המקסימום של הטווח, בתנאי שהמינימום גדול מאחד\",SetTempVar(MIN(F1:J11)),IF(GetTempVar()>1,MAX(F1:J11),GetTempVar()))","v":100}]

{"sheet":"גיליון2","index":1,"n_rows":0,"n_cols":0,"rows_kept":0,"cut":false,"hidden":false,"merged":[]}

{"sheet":"גיליון3","index":2,"n_rows":0,"n_cols":0,"rows_kept":0,"cut":false,"hidden":false,"merged":[]}